fUSD/lending_fUSD_20251019
["ID","MTS","AMOUNT","RATE_DAILY","PERIOD"]
[391840051,1760902861839,200.0,0.00034187,120]
[391840054,1760902943353,200.0,0.00034187,30]
[391840055,1760902943862,300.0,0.00034187,30]
[391840056,1760902972315,-176.56779663,0.0001388,2]
[391840062,1760903160790,200.0,0.00034187,120]
[391840066,1760903243227,200.0,0.00034187,30]
[391840067,1760903243838,300.0,0.00034187,30]
[391840082,1760903432411,-89.33220337,0.0001388,2]
[391840083,1760903432420,-265.9,0.0001461,2]
[391840084,1760903432431,-364.5462,0.00014898,2]
[391840085,1760903432440,-151.0,0.00014991,2]
[391840086,1760903432450,-150.0,0.00014998,2]
[391840087,1760903432460,-836.0,0.00014998,2]
[391840088,1760903432469,-300.0,0.00014998,2]
[391840089,1760903432479,-500.0,0.00014999,2]
[391840090,1760903432488,-500.0,0.00014999,2]
[391840091,1760903432498,-289.0868268,0.00014999,2]
[391840092,1760903432508,-545.65,0.00014999,2]
[391840093,1760903432517,-500.0,0.00014999,2]
[391840094,1760903432527,-500.0,0.00014999,2]
[391840095,1760903432536,-500.0,0.00014999,2]
[391840096,1760903432546,-399.55571806,0.00014999,2]
[391840097,1760903432555,-2481.7454807,0.00014999,2]
[391840098,1760903432565,-5920.92642844,0.00015,2]
[391840112,1760903438255,-8325.285969,0.00015,2]
[391840137,1760903446398,-3396.622335,0.00015,2]
[391840138,1760903461517,200.0,0.00034187,120]
[391840141,1760903542508,200.0,0.00034187,30]
[391840142,1760903542796,300.0,0.00034187,30]
[391840144,1760903603230,2059.25,0.00016299,30]
[391840146,1760903681769,500.0,0.00034187,30]
[391840148,1760903761846,200.0,0.00034187,120]
[391840151,1760903843351,270.0,0.00034187,30]
[391840152,1760903881485,1015.07298001,0.00034187,120]
[391840156,1760904061096,200.0,0.00034196,120]
[391840159,1760904233057,305.98951132,0.00034196,30]
[391840165,1760904360570,200.0,0.00034196,120]
[391840176,1760904547291,-186.52,0.00013699,2]
[391840177,1760904547315,-129.37737769,0.00014348,2]
[391840188,1760904631422,-170.62262231,0.00014348,2]
[391840189,1760904631432,-1830.3336,0.00014959,2]
[391840190,1760904631442,-150.0,0.00014997,2]
[391840191,1760904631452,-977.34038625,0.00014997,2]
[391840192,1760904631476,-222.65961375,0.00014997,2]
[391840193,1760904631487,-300.0,0.00014997,2]
[391840194,1760904631496,-952.5499997,0.00014998,2]
[391840195,1760904631506,-1213.85318379,0.00014998,2]
[391840196,1760904631517,-759.84761121,0.00014998,2]
[391840197,1760904631527,-226.33027523,0.00014998,2]
[391840198,1760904631539,-83576.17223967,0.00014998,2]
[391840199,1760904631549,-211.06174645,0.00014999,2]
[391840200,1760904631559,-500.0,0.00014999,2]
[391840201,1760904631569,-500.0,0.00014999,2]
[391840202,1760904631579,-500.0,0.00014999,2]
[391840203,1760904631588,-500.0,0.00014999,2]
[391840204,1760904631598,-500.0,0.00014999,2]
[391840205,1760904631608,-500.0,0.00014999,2]
[391840206,1760904631618,-500.0,0.00014999,2]
[391840207,1760904631628,-500.0,0.00014999,2]
[391840208,1760904631637,-500.0,0.00014999,2]
[391840209,1760904631647,-500.0,0.00014999,2]
[391840210,1760904631657,-500.0,0.00014999,2]
[391840211,1760904631666,-500.0,0.00014999,2]
[391840212,1760904631676,-500.0,0.00014999,2]
[391840213,1760904631686,-200.0,0.00014999,2]
[391840214,1760904631697,-500.0,0.00014999,2]
[391840215,1760904631706,-500.0,0.00014999,2]
[391840216,1760904631716,-500.0,0.00014999,2]
[391840217,1760904631726,-500.0,0.00014999,2]
[391840218,1760904631740,-500.0,0.00014999,2]
[391840219,1760904631750,-500.0,0.00014999,2]
[391840220,1760904631760,-500.0,0.00014999,2]
[391840221,1760904631770,-500.0,0.00014999,2]
[391840222,1760904631780,-500.0,0.00014999,2]
[391840223,1760904631789,-500.0,0.00014999,2]
[391840224,1760904631799,-500.0,0.00014999,2]
[391840225,1760904631808,-500.0,0.00014999,2]
[391840226,1760904631818,-500.0,0.00014999,2]
[391840227,1760904631828,-500.0,0.00014999,2]
[391840228,1760904631838,-500.0,0.00014999,2]
[391840229,1760904631847,-500.0,0.00014999,2]
[391840230,1760904631857,-500.0,0.00014999,2]
[391840231,1760904631867,-500.0,0.00014999,2]
[391840232,1760904631877,-500.0,0.00014999,2]
[391840234,1760904631886,-500.0,0.00014999,2]
[391840236,1760904631896,-500.0,0.00014999,2]
[391840238,1760904631904,-500.0,0.00014999,2]
[391840240,1760904631914,-203.22432625,0.00014999,2]
[391840242,1760904631927,-500.0,0.00014999,2]
[391840244,1760904631937,-500.0,0.00014999,2]
[391840247,1760904631947,-224.99,0.00014999,2]
[391840249,1760904631957,-222.43170548,0.00014999,2]
[391840251,1760904631967,-500.0,0.00014999,2]
[391840252,1760904631977,-500.0,0.00014999,2]
[391840254,1760904631987,-500.0,0.00014999,2]
[391840255,1760904631997,-500.0,0.00014999,2]
[391840256,1760904632006,-500.0,0.00014999,2]
[391840257,1760904632015,-500.0,0.00014999,2]
[391840258,1760904632025,-198.05489994,0.00014999,2]
[391840259,1760904632034,-500.0,0.00014999,2]
[391840260,1760904632044,-500.0,0.00014999,2]
[391840261,1760904632053,-500.0,0.00014999,2]
[391840262,1760904632063,-500.0,0.00014999,2]
[391840263,1760904632072,-500.0,0.00014999,2]
[391840264,1760904632082,-500.0,0.00014999,2]
[391840265,1760904632092,-532.39675245,0.00014999,2]
[391840266,1760904632101,-500.0,0.00014999,2]
[391840267,1760904632111,-500.0,0.00014999,2]
[391840268,1760904632120,-500.0,0.00014999,2]
[391840269,1760904632130,-500.0,0.00014999,2]
[391840270,1760904632140,-500.0,0.00014999,2]
[391840271,1760904632150,-500.0,0.00014999,2]
[391840272,1760904632159,-500.0,0.00014999,2]
[391840273,1760904632169,-500.0,0.00014999,2]
[391840274,1760904632178,-500.0,0.00014999,2]
[391840275,1760904632188,-500.0,0.00014999,2]
[391840276,1760904632198,-500.0,0.00014999,2]
[391840277,1760904632208,-500.0,0.00014999,2]
[391840278,1760904632217,-500.0,0.00014999,2]
[391840279,1760904632227,-500.0,0.00014999,2]
[391840280,1760904632236,-500.0,0.00014999,2]
[391840281,1760904632246,-500.0,0.00014999,2]
[391840282,1760904632255,-500.0,0.00014999,2]
[391840283,1760904632266,-500.0,0.00014999,2]
[391840284,1760904632275,-500.0,0.00014999,2]
[391840285,1760904632285,-500.0,0.00014999,2]
[391840286,1760904632294,-12740.07025479,0.00015,2]
[391840287,1760904632315,-782.07395127,0.00015,2]
[391840288,1760904632327,-16275.54130564,0.00015,2]
[391840289,1760904632340,-1614.31558144,0.00015,2]
[391840290,1760904632351,-4223.60304713,0.00015,2]
[391840291,1760904632361,-151.0,0.00015,2]
[391840292,1760904632371,-151.0,0.00015,2]
[391840293,1760904632382,-309.78276301,0.00015068,2]
[391840294,1760904632391,-195.0,0.00015068,2]
[391840295,1760904632401,-300.0,0.00015068,2]
[391840296,1760904632411,-569.71157097,0.00015068,2]
[391840297,1760904632421,-195.0,0.00015068,2]
[391840298,1760904632431,-265.9,0.00015341,2]
[391840299,1760904632441,-265.9,0.00016071,2]
[391840300,1760904632451,-150.0,0.00016122,2]
[391840301,1760904632461,-281.0,0.00016413,2]
[391840302,1760904632471,-516.73223365,0.00016438,2]
[391840303,1760904632481,-480.0,0.00016497,2]
[391840304,1760904632491,-4504.37098991,0.00016634,2]
[391840305,1760904632503,-718.78087629,0.00016634,2]
[391840306,1760904632515,-1701.6785179,0.00016634,2]
[391840307,1760904632527,-252.11824185,0.00016634,2]
[391840308,1760904632539,-368.0,0.00016634,2]
[391840309,1760904632551,-1360.866341,0.00016634,2]
[391840310,1760904632674,-836.36343726,0.00016634,2]
[391840311,1760904632686,-1525.23305569,0.00016634,2]
[391840312,1760904632701,-2802.49636648,0.00016634,2]
[391840313,1760904632721,-566.45954475,0.00016634,2]
[391840314,1760904632823,-425.84451,0.00016634,2]
[391840318,1760904637418,-68740.29063377,0.00016634,2]
[391840320,1760904637427,-151.0,0.00016634,2]
[391840322,1760904637435,-288.82853643,0.00016634,2]
[391840324,1760904637444,-837.8,0.00016682,2]
[391840326,1760904637453,-6617.4540728,0.00016702,2]
[391840328,1760904637462,-265.9,0.00016802,2]
[391840329,1760904637471,-360.0867865,0.00016802,2]
[391840331,1760904637480,-500.0,0.00016846,2]
[391840333,1760904637489,-500.0,0.00016846,2]
[391840334,1760904637499,-250.0,0.00017,2]
[391840335,1760904637507,-600.14,0.00017479,2]
[391840336,1760904637516,-265.9,0.00017532,2]
[391840337,1760904637525,-287.75,0.00017631,2]
[391840338,1760904637534,-15008.25,0.00017826,2]
[391840339,1760904637543,-2981.28,0.00017826,2]
[391840340,1760904637552,-944.54,0.00017826,2]
[391840341,1760904637561,-157.53,0.00018082,2]
[391840342,1760904637570,-246.62,0.00018181,2]
[391840343,1760904637579,-265.9,0.00018263,2]
[391840344,1760904637588,-301.385051,0.00018269,2]
[391840345,1760904637597,-83802.5025149,0.00018269,2]
[391840346,1760904637607,-905.57,0.00018337,2]
[391840347,1760904637616,-500.0,0.00018344,2]
[391840348,1760904637625,-500.0,0.00018344,2]
[391840349,1760904637634,-511.43463503,0.00018344,2]
[391840350,1760904637643,-522.42,0.00018344,2]
[391840351,1760904637652,-500.0,0.00018344,2]
[391840352,1760904637661,-3058.17329275,0.000185,2]
[391840353,1760904637669,-6617.45407276,0.00018826,2]
[391840354,1760904637678,-157.53,0.00018986,2]
[391840355,1760904637687,-265.9,0.00018993,2]
[391840356,1760904637696,-2297.62869576,0.00019,2]
[391840357,1760904637705,-160.0081392,0.00019,2]
[391840358,1760904637714,-31696.46237996,0.00019,2]
[391840359,1760904637725,-2130.04152097,0.00019,2]
[391840360,1760904637739,-300.0,0.00019,2]
[391840361,1760904637747,-151.0,0.00019,2]
[391840362,1760904637757,-151.0,0.00019,2]
[391840364,1760904637766,-150.0,0.00019234,2]
[391840366,1760904637775,-414.79416885,0.00019483,2]
[391840368,1760904637784,-511.29232431,0.00019664,2]
[391840370,1760904637799,-88.84767569,0.00019664,2]
[391840371,1760904637809,-265.9,0.00019724,2]
[391840372,1760904637818,-157.53,0.0001989,2]
[391840373,1760904637826,-837.8,0.00019895,2]
[391840374,1760904637835,-671.51192215,0.00019905,2]
[391840375,1760904637845,-2558.01096456,0.00019905,2]
[391840376,1760904637859,-949.99331377,0.00019905,2]
[391840377,1760904637869,-535.4935243,0.00019905,2]
[391840378,1760904637880,-12309.67379072,0.00019905,2]
[391840379,1760904637892,-1312.17981011,0.00019905,2]
[391840380,1760904637901,-542.46609112,0.00019905,2]
[391840382,1760904637912,-2150.29444335,0.00019905,2]
[391840385,1760904639623,-2335.64256114,0.00019905,2]
[391840386,1760904639634,-4702.83488613,0.00019905,2]
[391840387,1760904639792,-55734.40120755,0.00019905,2]
[391840388,1760904639802,-298.27449584,0.00019905,2]
[391840389,1760904639815,-163.53559678,0.00019917,2]
[391840390,1760904639825,-187.82819955,0.00020016,2]
[391840391,1760904639834,-173.10551163,0.00020016,2]
[391840392,1760904639844,-200.0,0.00020017,2]
[391840393,1760904639853,-200.0,0.00020017,2]
[391840394,1760904639863,-150.0,0.00020017,2]
[391840395,1760904639873,-150.0,0.00020072,2]
[391840396,1760904639883,-200.0,0.00020127,2]
[391840397,1760904639893,-150.0,0.00020187,2]
[391840398,1760904639903,-150.0,0.00020187,2]
[391840399,1760904639912,-186.52,0.00020187,2]
[391840400,1760904639922,-265.9,0.00020454,2]
[391840401,1760904639931,-157.53,0.00020795,2]
[391840402,1760904639940,-6617.45407276,0.0002095,2]
[391840403,1760904639950,-12354.67,0.00021068,2]
[391840404,1760904639959,-265.9,0.00021185,2]
[391840405,1760904639969,-151.0,0.00021451,7]
[391840406,1760904639979,-151.0,0.00021451,7]
[391840407,1760904639989,-600.14,0.00021849,2]
[391840408,1760904639998,-265.9,0.00021915,2]
[391840409,1760904640008,-5000.0,0.00021918,2]
[391840410,1760904640019,-265.9,0.00022646,2]
[391840411,1760904640031,-6617.45407276,0.00023073,2]
[391840412,1760904640040,-151.0,0.00023288,7]
[391840413,1760904640050,-151.0,0.00023288,7]
[391840414,1760904640059,-151.0,0.00023288,7]
[391840415,1760904640070,-151.0,0.00023288,7]
[391840416,1760904640083,-151.0,0.00023288,7]
[391840417,1760904640094,-151.0,0.00023288,7]
[391840418,1760904640104,-171.544816,0.00023288,7]
[391840419,1760904640115,-151.766207,0.00023288,7]
[391840420,1760904640125,-328.755652,0.00023288,7]
[391840421,1760904640134,-328.755652,0.00023288,7]
[391840422,1760904640145,-328.755652,0.00023288,7]
[391840423,1760904640155,-328.755652,0.00023288,7]
[391840424,1760904640165,-328.755652,0.00023288,7]
[391840425,1760904640175,-328.755652,0.00023288,7]
[391840426,1760904640185,-328.755652,0.00023288,7]
[391840427,1760904640195,-328.755652,0.00023288,7]
[391840428,1760904640204,-151.0,0.00023288,7]
[391840429,1760904640214,-257.879117,0.00023288,7]
[391840430,1760904640225,-265.9,0.00023376,2]
[391840431,1760904640235,-600.14,0.00024034,2]
[391840432,1760904640245,-500.0,0.000241,2]
[391840433,1760904640255,-500.0,0.000241,2]
[391840434,1760904640264,-504.53923939,0.000241,2]
[391840435,1760904640273,-500.0,0.000241,2]
[391840436,1760904640284,-500.0,0.000241,2]
[391840437,1760904640294,-502.45777756,0.000241,2]
[391840438,1760904640303,-265.9,0.00024107,2]
[391840439,1760904640312,-186.01183543,0.000247,2]
[391840440,1760904640322,-516.00945984,0.00024773,2]
[391840441,1760904640331,-522.42,0.00024799,2]
[391840442,1760904640341,-1201.31606024,0.00024799,10]
[391840443,1760904640351,-151.0,0.000248,7]
[391840444,1760904640360,-151.0,0.000248,7]
[391840445,1760904640370,-157928.911212,0.000248,3]
[391840446,1760904640379,-151.0,0.000248,7]
[391840447,1760904640389,-151.0,0.000248,7]
[391840448,1760904640399,-282.664597,0.000248,3]
[391840449,1760904640408,-328.755652,0.000248,7]
[391840450,1760904640419,-328.755652,0.000248,7]
[391840451,1760904640430,-328.755652,0.000248,7]
[391840452,1760904640440,-328.755652,0.000248,7]
[391840453,1760904640450,-265.9,0.00024838,2]
[391840454,1760904640460,-8773.82840069,0.0002489,3]
[391840455,1760904640471,-27225.8313022,0.000249,3]
[391840456,1760904640481,-163.53559677,0.0002492,2]
[391840457,1760904640490,-2978.49495698,0.00025104,2]
[391840458,1760904640499,-6617.45407276,0.00025197,2]
[391840459,1760904640508,-5445.16626044,0.00025389,3]
[391840460,1760904640517,-8773.82840069,0.00025399,3]
[391840461,1760904640527,-265.9,0.00025568,2]
[391840462,1760904640536,-5445.16626044,0.00026106,3]
[391840463,1760904640545,-8773.82840069,0.00026115,3]
[391840464,1760904640555,-151.54,0.00026146,2]
[391840465,1760904640564,-600.14,0.00026218,120]
[391840466,1760904640574,-265.9,0.00026299,2]
[391840467,1760904640583,-166.66,0.00026371,30]
[391840468,1760904640592,-150.0,0.00026472,2]
[391840469,1760904640602,-1657.0,0.000266,2]
[391840470,1760904640611,-186.52,0.00026676,2]
[391840471,1760904640621,-5445.16626044,0.00026702,3]
[391840472,1760904640630,-8773.82840069,0.00026711,3]
[391840473,1760904640639,-5445.16626044,0.00026712,3]
[391840474,1760904640650,-8773.82840069,0.00026722,3]
[391840475,1760904640659,-5445.16626044,0.00026722,3]
[391840476,1760904640668,-610.0,0.00026724,2]
[391840477,1760904640678,-328.755652,0.00026732,7]
[391840478,1760904640688,-328.755652,0.00026732,7]
[391840479,1760904640699,-328.755652,0.00026732,7]
[391840480,1760904640709,-328.755652,0.00026732,7]
[391840481,1760904640718,-160.68,0.00026732,2]
[391840482,1760904640728,-165.69,0.00026732,2]
[391840483,1760904640742,-150.0,0.00026732,2]
[391840484,1760904640752,-6260.56,0.00026732,2]
[391840485,1760904640762,-166.66,0.00026927,30]
[391840486,1760904640771,-2978.49495698,0.00026931,2]
[391840487,1760904640780,-265.9,0.00027029,2]
[391840488,1760904640790,-6617.45407276,0.00027321,2]
[391840489,1760904640799,-5445.16626044,0.00027367,3]
[391840490,1760904640808,-8773.82840069,0.00027377,3]
[391840491,1760904640818,-5445.16626044,0.00027377,3]
[391840492,1760904640827,-522.42,0.0002738,2]
[391840493,1760904640837,-151.0,0.00027387,7]
[391840494,1760904640846,-151.0,0.00027387,7]
[391840495,1760904640856,-151.0,0.00027387,7]
[391840496,1760904640865,-151.0,0.00027387,7]
[391840497,1760904640874,-151.0,0.00027387,7]
[391840498,1760904640884,-151.0,0.00027397,7]
[391840499,1760904640895,-267.78911181,0.00027397,7]
[391840500,1760904640907,-151.0,0.00027397,30]
[391840501,1760904640916,-151.0,0.00027397,30]
[391840502,1760904640925,-151.0,0.00027397,30]
[391840503,1760904640935,-151.0,0.00027397,30]
[391840504,1760904640944,-2023.48,0.000274,2]
[391840505,1760904640954,-2023.48,0.000274,2]
[391840506,1760904640964,-2023.48,0.000274,2]
[391840507,1760904640974,-2023.48,0.000274,2]
[391840508,1760904640984,-2023.48,0.000274,2]
[391840509,1760904640993,-166.66,0.00027482,30]
[391840510,1760904641003,-8773.82840069,0.00027729,3]
[391840511,1760904641013,-5445.16626044,0.00027729,3]
[391840512,1760904641022,-1500.0,0.00027759,120]
[391840513,1760904641032,-200.0,0.00027759,2]
[391840514,1760904641043,-300.0,0.00027759,2]
[391840515,1760904641052,-1000.0,0.00027759,2]
[391840516,1760904641063,-2751.0,0.00027759,2]
[391840517,1760904641073,-265.9,0.0002776,2]
[391840518,1760904641082,-5445.16626044,0.00027935,3]
[391840519,1760904641092,-8773.82840069,0.00027945,3]
[391840520,1760904641103,-166.66,0.00028037,30]
[391840521,1760904641113,-187.58,0.00028041,18]
[391840522,1760904641124,-1776.6,0.00028041,18]
[391840523,1760904641133,-5445.16626044,0.00028243,3]
[391840524,1760904641143,-228.19132475,0.00028253,4]
[391840525,1760904641153,-1000.0,0.0002853,2]
[391840526,1760904641163,-166.66,0.00028592,30]
[391840527,1760904641173,-166.66,0.00028592,2]
[391840528,1760904641183,-5445.16626044,0.00028755,3]
[391840529,1760904641192,-2978.49495698,0.00028757,2]
[391840530,1760904641202,-8773.82840069,0.00028766,3]
[391840531,1760904641212,-5445.16626044,0.00028766,3]
[391840532,1760904641221,-1705.74,0.00028796,2]
[391840533,1760904641231,-1037.13,0.00028886,2]
[391840534,1760904641241,-166.66,0.00029147,30]
[391840535,1760904641251,-2590.0,0.0002924,2]
[391840536,1760904641261,-6439.0,0.0002924,2]
[391840537,1760904641272,-557.0,0.0002924,2]
[391840538,1760904641282,-6448.0,0.0002924,2]
[391840539,1760904641292,-328.755652,0.00029287,30]
[391840540,1760904641302,-328.755652,0.00029287,30]
[391840541,1760904641313,-328.755652,0.00029287,30]
[391840542,1760904641322,-328.755648,0.00029287,30]
[391840543,1760904641332,-5445.16626044,0.00029288,3]
[391840544,1760904641343,-8773.82840069,0.00029297,3]
[391840545,1760904641354,-5445.16626044,0.00029337,3]
[391840546,1760904641365,-3259.25,0.00029347,2]
[391840547,1760904641375,-6617.45407276,0.00029445,2]
[391840548,1760904641385,-312.27,0.00029765,2]
[391840549,1760904641395,-163.53559677,0.00029924,15]
[391840550,1760904641405,-151.0,0.0002999,30]
[391840551,1760904641416,-151.0,0.0002999,30]
[391840552,1760904641426,-5445.16626044,0.0002999,3]
[391840553,1760904641436,-5679.9182538,0.0003,3]
[391840554,1760904641446,-151.0,0.0003,30]
[391840555,1760904641455,-165.69,0.00030074,2]
[391840556,1760904641465,-166.66,0.00030165,2]
[391840557,1760904641475,-200.430518,0.000302,2]
[391840558,1760904641484,-1657.0,0.000303,2]
[391840559,1760904641494,-5445.16626044,0.00030446,3]
[391840560,1760904641505,-949.32,0.00030457,2]
[391840561,1760904641515,-250.0,0.00030457,2]
[391840562,1760904641524,-666.0,0.00030461,3]
[391840563,1760904641536,-2978.49495698,0.00030584,2]
[391840564,1760904641545,-695.55,0.00030623,2]
[391840565,1760904641556,-250.0,0.0003079,7]
[391840566,1760904641566,-5445.16626044,0.00030994,3]
[391840567,1760904641576,-695.27,0.00031014,2]
[391840568,1760904641586,-695.55,0.00031014,2]
[391840569,1760904641595,-695.55,0.00031014,2]
[391840570,1760904641605,-695.55,0.00031014,2]
[391840571,1760904641614,-162.84,0.00031014,2]
[391840572,1760904641624,-200.0,0.00031048,2]
[391840573,1760904641633,-5445.16626044,0.00031175,3]
[391840574,1760904641642,-10890.3325209,0.00031195,3]
[391840575,1760904641652,-16335.4987813,0.00031205,3]
[391840576,1760904641661,-5445.16626044,0.00031209,3]
[391840577,1760904641671,-500.0,0.00031215,8]
[391840578,1760904641680,-485.79681914,0.00031215,8]
[391840579,1760904641690,-522.42,0.00031215,8]
[391840580,1760904641700,-684.99,0.00031215,7]
[391840581,1760904641710,-150.0,0.00031215,2]
[391840582,1760904641719,-208.0,0.00031215,2]
[391840583,1760904641728,-150.0,0.00031215,2]
[391840584,1760904641742,-200.0,0.00031215,2]
[391840585,1760904641751,-250.0,0.00031215,2]
[391840586,1760904641761,-185.55,0.00031215,2]
[391840587,1760904641771,-212.497,0.00031215,2]
[391840588,1760904641782,-150.0,0.00031215,2]
[391840589,1760904641791,-150.908,0.00031215,2]
[391840590,1760904641801,-150.0,0.00031215,2]
[391840591,1760904641940,-150.0,0.00031215,2]
[391840592,1760904641951,-208.466,0.00031215,2]
[391840593,1760904641961,-209.025,0.00031215,2]
[391840594,1760904641971,-250.0,0.00031215,2]
[391840595,1760904641980,-217.321,0.00031215,2]
[391840596,1760904641990,-3409.0,0.00031215,2]
[391840597,1760904642000,-2051.0,0.00031215,2]
[391840598,1760904642010,-786.0,0.00031215,2]
[391840599,1760904642022,-1268.0,0.00031215,2]
[391840600,1760904642037,-588.532,0.00031215,2]
[391840601,1760904642047,-679.349,0.00031215,2]
[391840602,1760904642057,-1310.0,0.00031215,2]
[391840603,1760904642067,-1589.0,0.00031215,2]
[391840604,1760904642080,-817.0,0.00031215,2]
[391840605,1760904642090,-2547.0,0.00031215,2]
[391840606,1760904642101,-902.0,0.00031215,2]
[391840607,1760904642112,-1000.0,0.00031229,2]
[391840608,1760904642122,-500.0,0.0003135,5]
[391840609,1760904642132,-154.59070905,0.0003135,5]
[391840610,1760904642143,-5445.16626044,0.00031415,3]
[391840611,1760904642153,-175.82,0.00031425,2]
[391840612,1760904642163,-546.93,0.00031425,2]
[391840613,1760904642172,-150.66,0.00031425,2]
[391840614,1760904642182,-166.22,0.00031425,2]
[391840615,1760904642192,-168.31,0.00031425,2]
[391840616,1760904642202,-413.82,0.00031425,2]
[391840617,1760904642213,-334.87,0.00031425,2]
[391840618,1760904642223,-150.0,0.00031425,2]
[391840619,1760904642232,-546.93,0.00031425,2]
[391840620,1760904642243,-176.05,0.00031425,2]
[391840621,1760904642253,-150.0,0.00031425,2]
[391840622,1760904642263,-413.82,0.00031425,2]
[391840623,1760904642272,-150.0,0.00031425,2]
[391840624,1760904642282,-168.31,0.00031425,2]
[391840625,1760904642292,-546.93,0.00031425,2]
[391840626,1760904642302,-150.0,0.00031425,2]
[391840627,1760904642311,-150.0,0.00031425,2]
[391840628,1760904642321,-413.82,0.00031425,2]
[391840630,1760904642331,-168.31,0.00031425,2]
[391840631,1760904642341,-546.93,0.00031425,2]
[391840632,1760904642352,-168.31,0.00031425,2]
[391840633,1760904642363,-413.82,0.00031425,2]
[391840634,1760904642373,-168.31,0.00031425,2]
[391840636,1760904642383,-546.93,0.00031425,2]
[391840638,1760904642394,-413.82,0.00031425,2]
[391840640,1760904642403,-546.93,0.00031425,2]
[391840641,1760904642413,-168.31,0.00031425,2]
[391840642,1760904642423,-413.82,0.00031425,2]
[391840643,1760904642432,-546.93,0.00031425,2]
[391840644,1760904642443,-168.31,0.00031425,2]
[391840645,1760904642453,-413.82,0.00031425,2]
[391840646,1760904642462,-546.93,0.00031425,2]
[391840647,1760904642473,-158.75,0.00031425,2]
[391840648,1760904642483,-413.82,0.00031425,2]
[391840649,1760904642492,-546.93,0.00031425,2]
[391840650,1760904642502,-413.82,0.00031425,2]
[391840651,1760904642512,-546.93,0.00031425,2]
[391840652,1760904642523,-373.01,0.00031425,2]
[391840653,1760904642533,-534.37,0.00031425,2]
[391840654,1760904642543,-186.01183543,0.0003144,2]
[391840655,1760904642553,-684.99,0.00031489,7]
[391840656,1760904642564,-5445.16626044,0.00031526,3]
[391840657,1760904642573,-1199.86,0.00031536,2]
[391840658,1760904642583,-1199.86,0.00031536,2]
[391840659,1760904642592,-1199.86,0.00031536,2]
[391840660,1760904642601,-1199.86,0.00031536,2]
[391840661,1760904642611,-1199.86,0.00031536,2]
[391840662,1760904642620,-1199.86,0.00031536,2]
[391840663,1760904642629,-1199.86,0.00031536,2]
[391840664,1760904642638,-1199.86,0.00031536,2]
[391840665,1760904642649,-1199.86,0.00031536,2]
[391840666,1760904642660,-1199.86,0.00031536,2]
[391840667,1760904642669,-1199.86,0.00031536,2]
[391840668,1760904642678,-6617.45407276,0.00031568,2]
[391840669,1760904642688,-166.66,0.00031738,2]
[391840670,1760904642697,-684.99,0.00031763,7]
[391840671,1760904642707,-498.26325594,0.00031898,5]
[391840672,1760904642717,-5445.16626044,0.00031943,3]
[391840673,1760904642727,-365.9,0.00031963,2]
[391840674,1760904642743,-546.15,0.00031963,2]
[391840675,1760904642753,-413.82,0.00031963,2]
[391840676,1760904642763,-196.41,0.00031963,2]
[391840677,1760904642774,-413.82,0.00031963,2]
[391840678,1760904642784,-413.82,0.00031963,2]
[391840679,1760904642794,-408.98,0.00031963,2]
[391840680,1760904642803,-5445.16626044,0.0003199,3]